bitfinex/quotes_ETHUSD_20250523
["timestamp","ask_amount","ask_price","bid_price","bid_amount"]
[1748005159822,11.776,2545.7,2545.5,19.096]
[1748005161235,11.776,2545.7,2545.5,23.02443714]
[1748005161650,11.776,2545.7,2545.5,19.096]
[1748005161845,3.9277673,2546.0,2545.5,23.02448168]
[1748005162022,3.92760663,2546.1,2545.6,11.92827409]
[1748005162223,3.92760663,2546.1,2545.6,11.92826276]
[1748005162461,3.92798993,2545.9,2545.6,8.0]
[1748005163058,15.70280812,2546.0,2545.6,8.0]
[1748005163254,15.70280812,2546.0,2545.6,11.92834585]
[1748005163559,11.775,2545.9,2545.6,8.0]
[1748005164142,3.92753103,2546.2,2545.7,3.92809179]
[1748005164345,13.9571259,2546.4,2545.9,3.92779591]
[1748005164581,11.775,2546.2,2545.9,21.86338404]
[1748005164880,11.775,2546.2,2545.9,17.9355]
[1748005165048,10.03,2546.4,2545.9,17.9355]
[1748005165247,3.92772977,2546.0,2545.9,16.956]
[1748005165649,3.92772977,2546.0,2545.9,36.051]
[1748005166979,13.95724163,2546.4,2545.9,39.9787925]
[1748005167160,15.70226854,2546.3,2545.9,39.9787925]
[1748005167334,3.9269182,2546.6,2546.1,3.92754216]
[1748005167655,15.70197982,2546.5,2546.1,3.92754216]
[1748005167859,15.70197982,2546.5,2545.9,44.86000932]
[1748005167860,11.775,2546.5,2546.0,8.0]
[1748005168061,3.92711278,2546.4,2546.0,8.0]
[1748005168361,3.9274708,2546.2,2546.0,8.0]
[1748005168561,3.9268807,2546.6,2546.1,3.92754036]
[1748005168775,11.775,2546.6,2546.2,3.9274177]
[1748005168950,3.92686616,2546.6,2546.0,10.73411143]
[1748005169276,3.92749775,2546.2,2546.1,19.033]
[1748005170170,3.9273581,2546.3,2546.1,19.033]
[1748005170374,3.92717866,2546.4,2545.9,16.956]
[1748005170375,3.9277272,2546.1,2545.9,16.956]
[1748005170674,3.92772977,2546.0,2545.9,35.988]
[1748005171234,3.92764492,2546.1,2545.9,35.988]
[1748005171458,3.92772977,2546.0,2545.9,35.988]
[1748005172349,3.92766543,2546.1,2545.9,35.988]
[1748005172669,3.92772977,2546.0,2545.9,35.988]
[1748005173335,3.92772977,2546.0,2545.9,16.956]
[1748005174484,25.73242295,2546.2,2545.9,16.956]
[1748005174648,21.804,2546.2,2545.9,16.956]
[1748005174836,11.774,2546.2,2545.9,16.956]
[1748005175174,10.774,2546.2,2545.9,20.88374022]
[1748005175406,3.92705303,2546.5,2545.9,20.88374022]
[1748005175407,0.9017,2546.8,2546.3,3.92712412]
[1748005175678,15.70042853,2546.9,2546.4,20.37161241]
[1748005175834,11.774,2547.1,2546.7,3.92653466]
[1748005176029,3.92595501,2547.2,2546.7,3.92653466]
[1748005176030,11.774,2547.2,2546.7,3.92653462]
[1748005176387,15.69994719,2547.2,2546.7,3.92658397]
[1748005176682,3.92612202,2547.1,2546.6,3.92673524]
[1748005176848,3.92612202,2547.1,2546.7,3.92663848]
[1748005177231,3.92611305,2547.1,2546.6,2.42983476]
[1748005177587,15.6989009,2547.2,2546.8,19.031]
[1748005177868,11.773,2547.2,2546.8,19.031]
[1748005178367,3.9262288,2547.0,2546.9,19.031]
[1748005178951,3.92672765,2546.7,2546.4,0.9469]
[1748005179156,3.92672765,2546.7,2546.5,19.031]
[1748005179481,3.92677562,2546.7,2546.6,19.029]
[1748005179788,3.92741187,2546.3,2546.1,0.9155]
[1748005179991,3.92741187,2546.3,2546.2,19.029]
[1748005180195,3.9268697,2546.6,2546.2,19.029]
[1748005180491,3.92718639,2546.4,2546.2,19.029]
[1748005180893,15.69851378,2546.8,2546.2,19.029]
[1748005180894,3.92726701,2546.3,2546.2,19.029]
[1748005181195,3.92726701,2546.3,2545.9,24.956]
[1748005181493,3.92749015,2546.2,2546.0,19.029]
[1748005181695,15.69929192,2546.3,2546.0,19.029]
[1748005181696,11.772,2546.3,2546.0,19.029]
[1748005181865,3.92743886,2546.2,2546.0,19.029]
[1748005182872,11.772,2546.3,2546.0,19.029]
[1748005183069,3.92713858,2546.4,2546.0,19.029]
[1748005183277,15.69913858,2546.4,2546.0,22.97899309]
[1748005183601,3.92734161,2546.3,2546.0,19.029]
[1748005183896,15.69913858,2546.4,2546.0,19.029]
[1748005184099,3.9275755,2546.1,2546.0,19.029]
[1748005184259,11.772,2546.4,2546.0,19.029]
[1748005184464,3.92727656,2546.3,2546.0,19.029]
[1748005185397,11.772,2546.4,2546.0,19.029]
[1748005185697,3.92751733,2546.2,2546.0,19.029]
[1748005185868,3.9275755,2546.1,2546.0,19.029]
[1748005186393,15.69917923,2546.4,2546.0,19.029]
[1748005186598,3.92738544,2546.3,2546.0,19.029]
[1748005186995,3.92749438,2546.2,2546.0,19.029]
[1748005187174,3.92749438,2546.2,2546.0,18.8852]
[1748005187372,3.92754191,2546.2,2546.1,19.029]
[1748005188400,3.92742125,2546.2,2546.1,19.029]
[1748005188705,3.76002125,2546.2,2546.1,19.029]
[1748005189514,10.03,2546.7,2546.1,22.97899309]
[1748005189679,3.92678102,2546.7,2546.2,9.01356636]
[1748005189865,3.92676149,2546.7,2546.2,12.9016429]
[1748005190202,3.92639523,2546.9,2546.3,3.92724538]
[1748005190498,3.92641012,2546.9,2546.4,8.0]
[1748005190700,3.92634182,2546.9,2546.2,12.90165033]
[1748005190864,3.92687559,2546.6,2546.4,8.0]
[1748005191062,3.92634182,2546.9,2546.4,8.0]
[1748005191304,11.772,2547.0,2546.2,8.9743]
[1748005191305,15.69820646,2547.0,2546.2,8.9743]
[1748005191486,3.92688583,2546.6,2546.2,8.9743]
[1748005191803,3.92688583,2546.6,2546.2,12.90170946]
[1748005192005,3.92688583,2546.6,2546.2,16.85170255]
[1748005192507,11.772,2546.7,2546.4,8.0]
[1748005192712,3.92639202,2546.9,2546.4,8.0]
[1748005192895,3.92681393,2546.6,2546.4,8.0]
[1748005193090,3.92671736,2546.7,2546.4,8.0]
[1748005193294,11.772,2546.9,2546.4,13.61224796]
[1748005193494,11.772,2546.9,2546.4,5.61213049]
[1748005193795,10.03,2547.4,2547.0,3.92606754]
[1748005194111,10.03,2547.4,2547.1,19.028]
[1748005194297,11.772,2547.4,2547.2,19.028]
[1748005194610,3.9255337,2547.5,2547.2,19.9138649]
[1748005194767,3.92557148,2547.4,2547.2,19.9138649]
[1748005195097,3.92572527,2547.3,2547.2,19.0196649]
[1748005196486,3.92565789,2547.4,2547.2,19.0196649]
[1748005196875,3.92564708,2547.4,2547.2,19.0196649]
[1748005197119,3.92572527,2547.3,2547.2,19.0196649]
[1748005198107,3.92565622,2547.4,2547.2,19.0196649]
[1748005198412,3.92572527,2547.3,2547.2,19.0196649]
[1748005199109,11.77,2547.6,2547.2,19.0196649]
[1748005199500,3.92572527,2547.3,2547.2,19.0196649]
[1748005200422,0.05,2547.9,2547.2,19.0196649]
[1748005200717,0.05,2547.9,2547.8,3.92495486]
[1748005200875,0.05,2547.9,2547.8,30.901199]
[1748005201074,0.05,2547.9,2547.8,30.86195486]
[1748005201274,0.05,2547.9,2547.8,26.937]
[1748005201479,0.05,2547.9,2547.8,8.0]
[1748005201731,0.05,2547.9,2547.8,26.937]
[1748005202588,0.05,2547.9,2547.8,8.0]
[1748005202792,0.05,2547.9,2547.3,0.62500817]
[1748005202793,3.92510892,2547.7,2547.3,0.62500817]
[1748005203103,0.05,2547.9,2547.6,8.0]
[1748005203292,0.05,2547.9,2547.7,3.96425957]
[1748005203476,0.05,2547.9,2547.8,0.9078]
[1748005203902,0.05,2547.9,2547.8,12.83275486]
[1748005204216,0.05,2547.9,2547.8,8.9078]
[1748005204516,0.05,2547.9,2547.8,12.83275486]
[1748005204812,0.05,2547.9,2547.8,14.50853888]
[1748005205201,0.05,2547.9,2547.8,14.51833888]
[1748005205405,0.05,2548.9,2548.5,3.92380146]
[1748005205608,0.05,2548.9,2548.6,35.91923206]
[1748005205791,0.05,2548.9,2548.7,19.8874]
[1748005205998,0.05,2548.9,2548.7,18.934]
[1748005206281,0.05,2548.9,2547.8,17.8845]
[1748005206282,0.982,2548.7,2547.8,17.8845]
[1748005206595,0.982,2548.7,2547.9,26.932]
[1748005206596,3.92450137,2548.1,2547.9,26.932]
[1748005206903,0.982,2548.7,2547.9,26.932]
[1748005207116,0.05,2548.9,2548.5,3.92378449]
[1748005207320,3.92356887,2548.7,2548.6,0.03923274]
[1748005207519,3.97331966,2548.9,2548.6,18.932]
[1748005207701,0.05,2548.9,2548.6,18.932]
[1748005207893,3.97333399,2548.9,2548.6,18.932]
[1748005208092,0.05,2548.9,2548.6,18.932]
[1748005208276,3.92356887,2548.7,2548.6,18.932]
[1748005208476,0.05,2548.9,2548.6,18.932]
[1748005209006,3.97333759,2548.9,2548.6,18.932]
[1748005209202,3.97329436,2548.9,2548.6,18.932]
[1748005209401,0.05,2548.9,2547.8,16.943]
[1748005209607,3.92341494,2548.8,2548.1,0.9049]
[1748005209805,3.92372282,2548.6,2548.2,18.929]
[1748005210018,3.92418475,2548.3,2548.2,18.929]
[1748005210317,0.9064,2548.7,2548.2,18.929]
[1748005210517,3.92415879,2548.4,2548.2,18.929]
[1748005210724,3.92418475,2548.3,2548.2,18.929]
[1748005211024,3.92411382,2548.4,2548.2,18.929]
[1748005211326,3.92456736,2548.1,2547.9,8.0]
[1748005211481,3.92388591,2548.5,2548.0,18.929]
[1748005211680,3.92480081,2547.9,2547.8,16.943]
[1748005211885,3.92480081,2547.9,2547.8,35.871]
[1748005212113,0.8991,2548.1,2547.8,35.871]
[1748005212294,3.92412437,2548.4,2547.8,35.871]
[1748005212646,3.92444912,2548.2,2547.8,35.871]
[1748005213123,3.92480081,2547.9,2547.8,24.943]
[1748005213421,3.92480081,2547.9,2547.8,35.871]
[1748005213620,3.92480081,2547.9,2547.8,16.943]
[1748005214221,4.84636299,2547.6,2547.5,18.928]
[1748005214422,0.9211,2547.6,2547.3,18.928]
[1748005214608,3.92522658,2547.7,2547.3,18.928]
[1748005214921,3.9251841,2547.7,2547.3,18.928]
[1748005215113,16.61995735,2548.0,2547.3,18.928]
[1748005215307,3.92480081,2547.9,2547.3,18.928]
[1748005215520,3.92496302,2547.8,2547.3,18.928]
[1748005215721,3.92501927,2547.8,2547.3,22.853721]
[1748005215924,12.6953,2548.0,2547.3,18.928]
[1748005215925,3.92537332,2547.6,2547.3,18.928]
[1748005216127,3.92543589,2547.5,2547.3,18.928]
[1748005216507,0.78506357,2547.5,2547.3,18.928]
[1748005216743,4.88677117,2547.4,2547.3,18.928]
[1748005217141,0.9612,2547.4,2547.3,18.928]
[1748005217448,4.88677117,2547.4,2547.3,18.928]
[1748005218549,0.9542,2548.0,2547.3,18.928]
[1748005218749,0.9542,2548.0,2547.4,9.8928]
[1748005218949,3.92422512,2548.3,2547.8,3.92487479]
[1748005219150,0.9542,2548.6,2547.9,19.8332]
[1748005219323,4.8779276,2548.6,2548.1,3.9243656]
[1748005219521,1.0269,2548.9,2548.1,8.0]
[1748005219738,1.0269,2548.9,2548.2,1.81852713]
[1748005219954,0.05,2548.9,2548.8,8.9849]
[1748005220170,0.05,2548.9,2548.8,27.9159]
[1748005220313,0.05,2548.9,2548.3,0.9455]
[1748005220515,3.92379508,2548.6,2548.4,18.931]
[1748005220763,3.92387679,2548.5,2548.4,26.931]
[1748005221065,3.92433757,2548.3,2548.1,8.0]
[1748005221366,0.39237951,2548.6,2548.2,18.931]
[1748005221517,3.92449275,2548.1,2548.0,24.943]
[1748005221713,3.92449275,2548.1,2548.0,35.871]
[1748005222265,15.68828169,2548.3,2548.0,35.871]
[1748005222563,3.92439539,2548.2,2548.0,35.871]
[1748005222717,15.68819426,2548.3,2548.0,35.871]
[1748005222913,3.92419426,2548.3,2548.0,35.871]
[1748005223113,0.9799,2548.6,2548.0,35.871]
[1748005223315,3.92449275,2548.1,2548.0,16.943]
[1748005223514,3.92449275,2548.1,2547.1,0.62500817]
[1748005223515,3.92543047,2547.5,2547.1,0.62500817]
[1748005223757,11.764,2547.8,2547.3,8.0]
[1748005223962,3.9247065,2548.0,2547.5,3.92539984]
[1748005224167,11.764,2548.0,2547.2,35.868]
[1748005224327,3.92409493,2548.4,2547.5,8.0]
[1748005224534,3.92409493,2548.4,2547.9,8.0]
[1748005224731,16.64675882,2548.5,2548.0,22.85361581]
[1748005225077,3.92403615,2548.4,2548.0,18.929]
[1748005225239,3.92406237,2548.4,2548.0,18.929]
[1748005225441,0.9588,2548.5,2547.6,1.28202712]
[1748005225638,0.9588,2548.5,2547.5,8.0]
[1748005225639,3.92403076,2548.4,2547.8,8.0]
[1748005225859,3.92463096,2548.1,2547.8,8.0]
[1748005226059,3.92469765,2548.0,2547.9,26.929]
[1748005226259,0.9588,2548.5,2547.9,26.929]
[1748005226474,3.9240923,2548.4,2547.9,26.929]
[1748005226677,3.92428117,2548.3,2547.9,26.929]
[1748005226882,3.92420772,2548.3,2547.9,26.929]
[1748005227063,3.92414716,2548.4,2547.9,26.929]
[1748005227231,3.92423086,2548.3,2547.9,26.929]
[1748005227431,3.92419536,2548.3,2547.9,26.929]
[1748005227627,11.764,2548.6,2548.1,3.9243965]
[1748005227628,3.92378281,2548.6,2548.1,3.9243965]
[1748005227930,0.05,2548.9,2548.5,3.92385544]
[1748005228128,0.05,2548.9,2548.6,18.928]
[1748005228334,3.9732622,2548.9,2548.6,18.928]
[1748005228662,3.92341724,2548.8,2548.6,18.928]
[1748005228869,0.05,2548.9,2548.6,18.928]
[1748005229031,3.97336172,2548.9,2548.6,18.928]
[1748005229227,0.05,2548.9,2548.7,0.03923207]
[1748005229480,0.05,2548.9,2548.6,23.81055436]
[1748005229686,0.05,2548.9,2548.6,21.30988323]
[1748005229986,0.05,2548.9,2548.2,16.941]
[1748005230151,3.92403076,2548.4,2548.3,18.832]
[1748005230546,3.92418475,2548.3,2548.2,35.771]
[1748005230746,15.68718475,2548.3,2548.2,35.771]
[1748005232068,15.68718475,2548.3,2548.2,16.941]
[1748005232269,15.63718475,2548.3,2548.2,16.941]
[1748005232583,16.61078475,2548.3,2548.2,16.941]
[1748005233395,12.7366,2548.3,2547.4,16.939]
[1748005233688,3.92618767,2547.0,2546.9,0.62500817]
[1748005233892,16.66448767,2547.0,2546.9,0.62500817]
[1748005234232,16.66448767,2547.0,2546.4,18.831]
[1748005234233,3.92695857,2546.5,2546.4,18.831]
[1748005234582,15.68995857,2546.5,2546.4,18.831]
[1748005235553,4.90805857,2546.5,2546.4,18.831]
[1748005235749,16.67105857,2546.5,2546.4,18.831]
[1748005235949,3.92742125,2546.2,2546.1,0.05]
[1748005236660,13.36932125,2546.2,2546.1,0.05]
[1748005237055,13.36932125,2546.2,2545.0,0.62500817]
[1748005237056,3.92896432,2545.2,2545.0,0.62500817]
[1748005237254,16.64956432,2545.2,2545.0,0.62500817]
[1748005237466,17.19956432,2545.2,2545.0,0.62500817]
[1748005237774,4.88356432,2545.2,2545.0,0.62500817]
[1748005237984,0.9546,2545.2,2544.5,8.0]
[1748005238135,11.766,2545.3,2545.0,18.835]
[1748005238340,12.7206,2545.7,2545.1,1.9385]
[1748005238645,12.7206,2545.7,2545.1,9.9385]
[1748005238646,11.766,2545.7,2545.1,9.9385]
[1748005238960,11.766,2545.7,2545.4,3.92861287]
[1748005239187,11.766,2546.0,2545.5,18.835]
[1748005239381,15.69366605,2546.1,2545.5,22.76344067]
[1748005239695,11.769,2546.6,2545.8,0.9534]
[1748005240035,11.769,2546.6,2545.8,8.9534]
[1748005240241,0.9608,2547.2,2546.2,8.0]
[1748005240487,0.9608,2547.2,2546.6,3.92672561]
[1748005240689,15.69475972,2547.3,2546.6,0.8942]
[1748005240891,11.769,2547.3,2546.7,3.92665017]
[1748005241052,11.769,2547.3,2546.8,18.841]
[1748005241257,3.92629555,2547.0,2546.5,8.0]
[1748005241575,3.92587939,2547.2,2546.4,8.0]
[1748005241737,3.92665017,2546.7,2546.6,18.841]
[1748005242135,3.92711278,2546.4,2546.3,16.948]
[1748005242375,0.876,2546.5,2545.8,18.841]
[1748005242578,4.80300628,2546.5,2545.8,18.841]
[1748005242749,3.92788404,2545.9,2545.8,18.841]
[1748005242953,0.876,2546.5,2545.8,18.841]
[1748005243274,11.77,2546.5,2546.0,3.92762172]
[1748005243443,15.69696783,2546.5,2545.9,13.8119034]
[1748005243643,3.92711278,2546.4,2545.4,16.949]
[1748005243875,12.6922,2546.5,2545.8,18.841]
[1748005244074,0.9222,2546.5,2545.8,18.841]
[1748005244375,12.6922,2546.5,2545.5,8.0]
[1748005244584,3.92755041,2546.2,2545.7,11.9281559]
[1748005244740,12.6922,2546.5,2545.7,11.9281559]
[1748005244741,11.77,2546.5,2545.9,3.92788404]
[1748005245078,11.77,2546.5,2545.9,8.0]
[1748005245279,11.77,2546.5,2545.1,1.9385]
[1748005245584,3.92811896,2545.8,2545.5,18.843]
[1748005245877,3.92850127,2545.5,2545.2,8.8949]
[1748005246079,3.92850127,2545.5,2545.1,1.9385]
[1748005246080,3.92815813,2545.8,2545.4,35.792]
[1748005246255,3.92839954,2545.6,2545.4,35.792]
[1748005246467,11.771,2545.7,2545.4,35.792]
[1748005246780,3.92850127,2545.5,2545.4,35.792]
[1748005246982,3.92835086,2545.6,2545.4,35.792]
[1748005247190,11.771,2545.6,2545.4,35.792]
[1748005247385,15.69938769,2545.6,2545.4,35.792]
[1748005247771,3.92850127,2545.5,2545.4,35.792]
[1748005247975,0.9051,2546.4,2545.5,8.0]
[1748005248173,15.697739,2546.7,2545.8,0.9555]
[1748005248373,3.92605758,2547.1,2546.0,11.92772977]
[1748005248547,3.92637263,2546.9,2546.1,26.846]
[1748005248885,3.92642186,2546.9,2546.4,3.9270853]
[1748005249185,3.92616534,2547.1,2546.5,12.31957469]
[1748005249345,3.92613249,2547.1,2546.5,8.39270853]
[1748005249541,11.773,2547.2,2546.5,8.39270853]
[1748005249784,3.92620857,2547.0,2546.6,18.846]
[1748005249986,3.92665017,2546.7,2546.6,18.846]
[1748005250171,3.92603352,2547.1,2546.6,18.846]
[1748005250172,3.92645129,2546.9,2546.6,18.846]
[1748005250344,11.773,2547.2,2546.6,18.846]
[1748005250548,11.773,2547.2,2546.4,16.953]
[1748005250743,3.92665657,2546.7,2546.5,18.846]
[1748005250948,3.92695857,2546.5,2546.4,16.953]
[1748005251174,11.773,2547.2,2546.4,35.799]
[1748005251386,3.92695857,2546.5,2546.4,35.799]
[1748005251684,11.773,2547.2,2546.4,35.799]
[1748005251885,3.92668742,2546.7,2546.4,35.799]
[1748005252088,3.92675766,2546.7,2546.4,35.799]
[1748005252293,3.92656967,2546.8,2546.4,35.799]
[1748005252451,3.92666851,2546.7,2546.4,35.799]
[1748005252786,3.92627412,2547.0,2546.6,0.9326]
[1748005253085,3.9261629,2547.1,2546.7,0.48595255]
[1748005253288,3.92619239,2547.0,2546.6,0.9326]
[1748005253489,4.54459092,2548.2,2546.6,0.9326]
[1748005253647,3.92565205,2547.4,2546.8,3.92635068]
[1748005254015,3.92565205,2547.4,2546.7,3.92655667]
[1748005254016,11.772,2547.6,2546.9,18.88425732]
[1748005254188,0.09821615,2546.9,2546.8,12.47639646]
[1748005254486,0.09821615,2546.9,2546.8,33.59069611]
[1748005254688,11.81394139,2547.9,2547.4,3.9254722]
[1748005254868,15.73883694,2547.9,2547.5,18.844]
[1748005255061,15.73883694,2547.9,2547.4,20.8764722]
[1748005255062,3.92541707,2547.5,2547.4,16.951]
[1748005255261,3.92541707,2547.5,2547.4,35.795]
[1748005255467,3.92572527,2547.3,2547.2,18.844]
[1748005255690,15.69672527,2547.3,2547.2,18.844]
[1748005256248,15.69625496,2547.7,2547.2,18.844]
[1748005256490,15.69612477,2547.7,2547.2,19.7969]
[1748005256787,3.9254683,2547.5,2547.2,19.7969]
[1748005256954,3.92567214,2547.4,2547.2,19.7969]
[1748005257147,11.771,2547.7,2547.3,18.842]
[1748005257368,3.92557117,2547.4,2547.3,18.842]
[1748005258380,11.771,2547.7,2546.8,0.9084]
[1748005258586,3.92612721,2547.1,2546.9,18.842]
[1748005258814,3.92593971,2547.2,2546.9,18.842]
[1748005259109,3.92594641,2547.2,2547.0,18.842]
[1748005259319,4.31854105,2547.2,2546.6,16.951]
[1748005259520,3.92649599,2546.8,2546.7,18.842]
[1748005259723,0.39259464,2547.2,2546.7,18.842]
[1748005259891,3.92635098,2546.9,2546.7,18.842]
[1748005260072,11.77,2547.1,2546.6,16.951]
[1748005260274,11.77,2547.1,2546.0,0.9524]
[1748005260489,3.92742125,2546.2,2546.1,18.752]
[1748005261016,3.92726701,2546.3,2545.7,17.9014]
[1748005261242,3.92772977,2546.0,2545.9,18.752]
[1748005261440,3.92866913,2545.4,2545.3,18.752]
[1748005261787,3.92852354,2545.5,2545.1,0.05]
[1748005262092,3.92896432,2545.2,2545.1,0.05]
[1748005262798,4.80426432,2545.2,2545.1,0.05]
[1748005263185,11.77,2545.2,2545.1,0.05]
[1748005263380,15.69896432,2545.2,2545.1,0.05]
[1748005263876,3.92896432,2545.2,2545.1,0.05]
[1748005264077,15.70196432,2545.2,2545.1,0.05]
[1748005265962,18.91173696,2545.2,2545.1,0.05]
[1748005266237,28.35103696,2545.2,2545.1,0.05]
[1748005266604,47.11103696,2545.2,2545.1,0.01688189]
[1748005266803,5.3698086,2544.2,2544.1,0.05]
[1748005267130,0.8893,2544.2,2544.1,0.05]
[1748005267292,3.92990387,2544.6,2544.1,0.05]
[1748005267638,11.775,2544.7,2544.1,0.05]
[1748005267878,3.92823492,2545.7,2544.9,3.92934685]
[1748005268022,3.92727705,2546.3,2544.2,16.956]
[1748005268023,0.46092738,2545.3,2545.1,8.9156]
[1748005268219,0.05139127,2545.3,2545.2,47.64496432]
[1748005268536,1.21932557,2546.2,2546.1,3.9275755]
[1748005268746,1.21932557,2546.2,2546.1,30.6875755]
[1748005268912,1.21932557,2546.2,2546.1,16.30470426]
[1748005269114,1.21932557,2546.2,2545.2,16.956]
[1748005269115,1.21932557,2546.2,2545.5,1.11408661]
[1748005269428,0.9704,2546.2,2545.2,16.956]
[1748005269627,3.92668593,2546.7,2545.3,8.0]
[1748005269829,3.92769575,2546.1,2545.3,8.0]
[1748005270142,16.67125753,2546.6,2545.2,16.956]
[1748005270143,3.9285822,2545.5,2545.2,16.956]
[1748005270344,3.92865561,2545.4,2545.3,18.759]
[1748005270544,3.9285486,2545.5,2545.3,18.759]
[1748005270729,3.92804397,2545.8,2545.3,22.68778444]
[1748005270927,3.9284908,2545.6,2545.3,18.759]
[1748005271132,3.92819263,2545.7,2545.2,18.78672347]
[1748005271333,3.92880996,2545.3,2545.2,24.956]
[1748005271673,3.92880996,2545.3,2545.2,35.715]
[1748005272317,0.9158,2545.9,2545.2,35.715]
[1748005272318,3.92850255,2545.5,2545.2,35.715]
[1748005272635,11.774,2546.1,2545.3,8.0]
[1748005272836,3.92797848,2545.9,2545.4,4.91769309]
[1748005273042,3.92737871,2546.3,2545.5,8.0]
[1748005273222,3.92742279,2546.2,2545.7,3.92815591]
[1748005273555,3.92725492,2546.4,2545.8,18.76]
[1748005273852,0.9698,2546.7,2545.8,18.76]
[1748005274058,11.775,2546.8,2545.9,10.26881404]
[1748005274256,0.05,2546.9,2546.0,0.95896922]
[1748005274473,0.05,2546.9,2546.0,8.9197]
[1748005274819,0.05,2546.9,2546.2,3.92742125]
[1748005275067,0.05,2546.9,2546.8,0.9197]
[1748005275223,0.05,2546.9,2546.4,8.0]
[1748005275224,3.92649599,2546.8,2546.4,8.0]
[1748005275420,3.92649599,2546.8,2546.6,18.758]
[1748005275421,3.92658405,2546.8,2546.6,18.758]
[1748005275746,0.05,2546.9,2546.7,3.92663917]
[1748005276059,0.05,2546.9,2546.6,18.758]
[1748005276060,3.92649599,2546.8,2546.6,18.758]
[1748005276219,3.92665017,2546.7,2546.6,18.758]
[1748005276419,0.05,2546.9,2546.6,18.758]
[1748005276625,0.05,2546.9,2546.6,21.4176253]
[1748005276830,0.05,2546.9,2546.8,3.92649599]
[1748005277029,0.05,2546.9,2546.8,12.86749599]
[1748005277266,0.04194139,2547.9,2547.8,3.92495486]
[1748005277466,0.04194139,2547.9,2547.8,48.57895486]
[1748005277665,0.04194139,2547.9,2547.8,52.52894795]
[1748005278532,0.05,2548.9,2548.7,3.92354629]
[1748005278879,0.05,2548.9,2548.8,48.58344844]
[1748005279030,0.05,2548.9,2548.8,48.54421494]
[1748005279748,0.05,2548.9,2548.8,49.09421494]
[1748005280089,2.55310722,2550.2,2549.8,11.92187622]
[1748005280228,3.09374094,2550.6,2550.5,4.84739984]
[1748005280432,3.09374094,2550.6,2550.5,32.15039984]
[1748005280645,3.09374094,2550.6,2550.5,31.60039984]
[1748005280855,3.09374094,2550.6,2549.0,3.92300414]
[1748005281041,3.77464866,2550.6,2549.1,51.42598131]
[1748005281257,3.9219443,2549.8,2549.3,0.55]
[1748005281438,3.9220169,2549.8,2549.4,0.32744277]
[1748005281640,3.92233771,2549.5,2549.4,0.32744277]
[1748005281844,4.60163988,2550.6,2549.4,19.07144277]
[1748005282073,12.18031638,2550.5,2549.5,3.9222414]
[1748005282277,12.18031638,2550.5,2549.6,4.28881304]
[1748005282477,3.92136144,2550.2,2549.7,0.32740424]
[1748005282637,4.33618419,2550.5,2549.7,0.32740424]
[1748005282835,3.92115688,2550.3,2549.7,0.32740424]
[1748005283036,12.18031638,2550.5,2549.7,0.32740424]
[1748005283263,0.68090772,2550.4,2549.7,0.32740424]
[1748005283575,3.92187622,2549.8,2549.7,0.32740424]
[1748005284288,15.68687622,2549.8,2549.7,0.32740424]
[1748005284494,16.23687622,2549.8,2549.7,0.32740424]
[1748005284793,3.92249156,2549.4,2548.7,18.739]
[1748005285093,3.92341494,2548.8,2548.7,18.739]
[1748005285451,12.15424916,2549.3,2548.7,18.739]
[1748005285757,3.92341494,2548.8,2548.7,18.739]
[1748005286153,11.762,2549.4,2548.7,18.739]
[1748005286399,3.92266916,2549.3,2548.7,18.739]
[1748005286600,3.92283591,2549.2,2548.8,1.8739]
[1748005286753,3.92283591,2549.2,2548.7,18.739]
[1748005286754,3.92249156,2549.4,2548.7,18.739]
[1748005286953,3.92323929,2549.0,2548.7,18.739]
[1748005287200,3.92290323,2549.2,2548.7,18.739]
[1748005287385,15.68439309,2549.5,2548.7,18.739]
[1748005287554,3.92340229,2548.9,2548.7,18.739]
[1748005287934,11.762,2549.5,2548.7,18.739]
[1748005288046,3.92308787,2549.1,2548.7,18.739]
[1748005288248,11.762,2550.4,2548.8,8.9227]
[1748005288455,3.92095295,2550.5,2549.0,3.9231071]
[1748005288653,0.05,2550.9,2549.6,11.92218387]
[1748005288863,0.05,2550.9,2550.4,3.92095357]
[1748005289085,3.97026983,2550.9,2550.5,18.77820235]
[1748005289286,3.97026983,2550.9,2550.5,18.739]
[1748005289287,0.05,2550.9,2550.5,18.739]
[1748005289556,3.97030959,2550.9,2550.5,18.739]
[1748005289752,3.92064612,2550.6,2550.5,18.739]
[1748005289958,0.83902288,2550.9,2550.5,18.739]
[1748005289959,3.97022937,2550.9,2550.5,18.739]
[1748005290186,3.97019148,2550.9,2550.5,18.739]
[1748005290367,0.05,2550.9,2550.5,18.739]
[1748005290700,3.92052566,2550.7,2550.5,18.739]
[1748005290865,3.92035499,2550.8,2550.5,18.739]
[1748005291070,3.92064612,2550.6,2550.5,18.739]
[1748005291296,3.92064612,2550.6,2550.5,18.667]
[1748005291595,0.05,2550.9,2550.5,18.667]
[1748005292599,0.05,2550.9,2550.8,3.92033871]
[1748005292760,0.05,2550.9,2550.8,16.933]
[1748005292964,3.97018503,2550.9,2550.8,35.6]
[1748005293185,4.36720353,2550.9,2550.8,16.933]
[1748005293397,4.36720353,2550.9,2550.8,35.596]
[1748005293710,0.05,2550.9,2550.8,35.596]
[1748005293915,3.97018503,2550.9,2550.8,35.596]
[1748005294959,3.97018503,2550.9,2550.8,16.933]
[1748005295164,3.92172242,2549.9,2549.6,0.9706]
[1748005295412,3.921463,2550.1,2549.6,0.9706]